fUST/lending_fUST_20240826
["ID","MTS","AMOUNT","RATE_DAILY","PERIOD"]
[336042215,1724679040152,-3472.67,0.00012216,2]
[336042216,1724679040162,-500.0,0.00012216,2]
[336042217,1724679040172,-500.0,0.00012216,2]
[336042218,1724679040181,-666.85,0.00012216,2]
[336042219,1724679040191,-500.06,0.00012216,2]
[336042220,1724679040201,-1090.82,0.00012216,2]
[336042221,1724679040211,-812.91,0.00012216,2]
[336042222,1724679040220,-500.0,0.00012216,2]
[336042223,1724679040230,-500.0,0.00012216,2]
[336042224,1724679040239,-500.0,0.00012216,2]
[336042226,1724679040249,-919.54,0.00012216,2]
[336042227,1724679040259,-914.97,0.00012216,2]
[336042235,1724679040480,-500.0,0.00012216,2]
[336042236,1724679040490,-1211.67,0.00012216,2]
[336042237,1724679040500,-770.41,0.00012216,2]
[336042238,1724679040510,-500.0,0.00012216,2]
[336042239,1724679040519,-1198.82,0.00012216,2]
[336042240,1724679040529,-696.93,0.00012216,2]
[336042241,1724679040539,-500.0,0.00012216,2]
[336042243,1724679040548,-500.0,0.00012216,2]
[336042244,1724679040558,-566.38488264,0.00012216,2]
[336042245,1724679040567,-500.0,0.00012216,2]
[336042246,1724679040577,-500.0,0.00012216,2]
[336042247,1724679040587,-1325.78,0.00012216,2]
[336042248,1724679040596,-626.13,0.00012216,2]
[336042249,1724679040606,-814.76,0.00012216,2]
[336042250,1724679040617,-500.0,0.00012216,2]
[336042251,1724679040631,-571.61,0.00012216,2]
[336042252,1724679040641,-654.47,0.00012216,2]
[336042253,1724679040650,-732.96,0.00012216,2]
[336042255,1724679040663,-500.0,0.00012216,2]
[336042257,1724679040674,-16859.0616762,0.00012216,2]
[336042259,1724679040683,-45453.35463684,0.00012217,2]
[336042260,1724679040714,-21982.89206786,0.00012217,2]
[336042261,1724679040724,-3000.0,0.0001222,2]
[336042262,1724679040733,-500.0,0.00012226,2]
[336042263,1724679040742,-500.0,0.00012226,2]
[336042264,1724679040751,-500.0,0.00012226,2]
[336042265,1724679040760,-500.0,0.00012226,2]
[336042266,1724679040769,-2043.59,0.00012226,2]
[336042267,1724679040779,-2043.59,0.00012226,2]
[336042268,1724679040788,-2043.59,0.00012226,2]
[336042269,1724679040799,-2043.59,0.00012226,2]
[336042270,1724679040808,-712.49,0.00012226,2]
[336042271,1724679040818,-712.49,0.00012226,2]
[336042272,1724679040827,-500.0,0.00012226,2]
[336042273,1724679040836,-500.0,0.00012226,2]
[336042274,1724679040845,-500.0,0.00012227,2]
[336042275,1724679040855,-500.0,0.00012227,2]
[336042276,1724679040865,-500.0,0.00012227,2]
[336042277,1724679040874,-500.0,0.00012227,2]
[336042278,1724679040884,-500.0,0.00012227,2]
[336042279,1724679040893,-500.0,0.00012227,2]
[336042280,1724679040902,-254.16034572,0.00012227,2]
[336042281,1724679040911,-500.0,0.00012227,2]
[336042282,1724679040921,-614.87,0.00012227,2]
[336042283,1724679040930,-552.66437832,0.00012227,2]
[336042284,1724679040940,-500.0,0.00012227,2]
[336042285,1724679040949,-243.66268991,0.00012227,2]
[336042286,1724679040959,-500.0,0.00012227,2]
[336042287,1724679040969,-500.0,0.00012227,2]
[336042288,1724679040980,-500.0,0.00012227,2]
[336042289,1724679040990,-500.0,0.00012227,2]
[336042290,1724679040999,-500.0,0.00012227,2]
[336042291,1724679041009,-500.0,0.00012227,2]
[336042292,1724679041018,-500.0,0.00012227,2]
[336042293,1724679041027,-334.28,0.00012227,2]
[336042294,1724679041037,-500.0,0.00012227,2]
[336042295,1724679041048,-500.0,0.00012227,2]
[336042296,1724679041058,-500.0,0.00012227,2]
[336042297,1724679041068,-500.0,0.00012227,2]
[336042298,1724679041078,-500.0,0.00012227,2]
[336042299,1724679041088,-500.0,0.00012227,2]
[336042300,1724679041097,-160.70571739,0.00012227,2]
[336042301,1724679041106,-500.0,0.00012227,2]
[336042302,1724679041115,-500.0,0.00012227,2]
[336042303,1724679041124,-231.35965788,0.00012227,2]
[336042304,1724679041136,-500.0,0.00012227,2]
[336042305,1724679041146,-500.0,0.00012227,2]
[336042306,1724679041157,-500.0,0.00012227,2]
[336042307,1724679041168,-500.0,0.00012227,2]
[336042308,1724679041177,-500.0,0.00012227,2]
[336042309,1724679041187,-500.0,0.00012227,2]
[336042310,1724679041196,-500.0,0.00012227,2]
[336042311,1724679041205,-500.0,0.00012227,2]
[336042312,1724679041214,-500.0,0.00012227,2]
[336042313,1724679041224,-500.0,0.00012227,2]
[336042314,1724679041233,-500.0,0.00012227,2]
[336042315,1724679041244,-500.0,0.00012227,2]
[336042316,1724679041254,-500.0,0.00012227,2]
[336042317,1724679041263,-500.0,0.00012227,2]
[336042318,1724679041274,-500.0,0.00012227,2]
[336042319,1724679041283,-500.0,0.00012227,2]
[336042320,1724679041293,-500.0,0.00012227,2]
[336042321,1724679041302,-500.0,0.00012227,2]
[336042322,1724679041311,-501.82731712,0.00012227,2]
[336042323,1724679041320,-500.0,0.00012227,2]
[336042324,1724679041330,-500.0,0.00012227,2]
[336042325,1724679041340,-500.0,0.00012227,2]
[336042326,1724679041349,-500.0,0.00012227,2]
[336042327,1724679041358,-661.56,0.00012227,2]
[336042328,1724679041369,-500.0,0.00012227,2]
[336042329,1724679041379,-500.0,0.00012227,2]
[336042330,1724679041393,-500.0,0.00012227,2]
[336042331,1724679041402,-937.55,0.00012227,2]
[336042332,1724679041412,-500.0,0.00012227,2]
[336042333,1724679041421,-500.0,0.00012227,2]
[336042334,1724679041432,-500.0,0.00012227,2]
[336042335,1724679041443,-500.0,0.00012227,2]
[336042336,1724679041452,-500.0,0.00012227,2]
[336042337,1724679041462,-500.0,0.00012227,2]
[336042338,1724679041471,-626.32,0.00012227,2]
[336042339,1724679041480,-500.0,0.00012227,2]
[336042340,1724679041490,-500.0,0.00012227,2]
[336042341,1724679041499,-500.0,0.00012227,2]
[336042342,1724679041509,-500.0,0.00012227,2]
[336042343,1724679041518,-500.0,0.00012227,2]
[336042344,1724679041528,-500.0,0.00012227,2]
[336042345,1724679041538,-500.0,0.00012227,2]
[336042346,1724679041547,-500.0,0.00012227,2]
[336042347,1724679041556,-500.0,0.00012227,2]
[336042348,1724679041565,-500.0,0.00012227,2]
[336042349,1724679041574,-500.0,0.00012227,2]
[336042350,1724679041584,-500.0,0.00012227,2]
[336042351,1724679041593,-500.0,0.00012227,2]
[336042352,1724679041603,-500.0,0.00012227,2]
[336042353,1724679041612,-500.74322692,0.00012227,2]
[336042354,1724679041626,-500.0,0.00012227,2]
[336042355,1724679041637,-500.0,0.00012227,2]
[336042356,1724679041646,-500.0,0.00012227,2]
[336042357,1724679041656,-500.0,0.00012227,2]
[336042358,1724679041667,-570.0,0.00012227,2]
[336042359,1724679041676,-500.0,0.00012227,2]
[336042360,1724679041686,-1125.97,0.00012227,2]
[336042361,1724679041696,-500.0,0.00012227,2]
[336042362,1724679041706,-500.0,0.00012227,2]
[336042363,1724679041715,-703.34,0.00012227,2]
[336042364,1724679041725,-500.0,0.00012227,2]
[336042365,1724679041735,-500.0,0.00012227,2]
[336042366,1724679041746,-500.0,0.00012227,2]
[336042367,1724679041755,-500.0,0.00012227,2]
[336042368,1724679041764,-500.0,0.00012227,2]
[336042369,1724679041773,-500.0,0.00012227,2]
[336042370,1724679041782,-500.0,0.00012227,2]
[336042371,1724679041792,-500.0,0.00012227,2]
[336042372,1724679041802,-500.0,0.00012227,2]
[336042373,1724679041812,-500.0,0.00012227,2]
[336042374,1724679041822,-626.31365658,0.00012227,2]
[336042375,1724679041832,-905.97,0.00012227,2]
[336042376,1724679041844,-500.0,0.00012227,2]
[336042377,1724679041855,-666.33,0.00012227,2]
[336042378,1724679041866,-500.0,0.00012227,2]
[336042379,1724679041875,-500.0,0.00012227,2]
[336042380,1724679041887,-584.56815414,0.00012227,2]
[336042381,1724679041896,-500.0,0.00012227,2]
[336042382,1724679041905,-500.0,0.00012227,2]
[336042383,1724679041915,-1189.96,0.00012227,2]
[336042384,1724679041925,-1031.58,0.00012227,2]
[336042385,1724679041935,-502.22118532,0.00012227,2]
[336042386,1724679041944,-500.0,0.00012227,2]
[336042387,1724679041956,-500.0,0.00012227,2]
[336042388,1724679041967,-500.0,0.00012227,2]
[336042389,1724679041976,-748.53,0.00012227,2]
[336042390,1724679041986,-500.0,0.00012227,2]
[336042391,1724679041996,-501.17789383,0.00012227,2]
[336042392,1724679042006,-500.0,0.00012227,2]
[336042393,1724679042015,-500.0,0.00012227,2]
[336042394,1724679042024,-500.0,0.00012227,2]
[336042395,1724679042034,-500.0,0.00012227,2]
[336042396,1724679042044,-500.0,0.00012227,2]
[336042397,1724679042055,-530.90616032,0.00012227,2]
[336042398,1724679042065,-500.0,0.00012227,2]
[336042399,1724679042075,-904.37,0.00012227,2]
[336042400,1724679042085,-500.0,0.00012227,2]
[336042401,1724679042094,-500.0,0.00012227,2]
[336042402,1724679042103,-500.0,0.00012227,2]
[336042403,1724679042112,-500.0,0.00012227,2]
[336042404,1724679042122,-500.0,0.00012227,2]
[336042405,1724679042131,-500.0,0.00012227,2]
[336042406,1724679042140,-500.0,0.00012227,2]
[336042407,1724679042149,-851.57,0.00012227,2]
[336042408,1724679042159,-500.0,0.00012227,2]
[336042409,1724679042168,-500.0,0.00012227,2]
[336042410,1724679042177,-520.01,0.00012227,2]
[336042411,1724679042187,-500.0,0.00012227,2]
[336042412,1724679042196,-500.0,0.00012227,2]
[336042413,1724679042205,-500.0,0.00012227,2]
[336042414,1724679042214,-500.0,0.00012227,2]
[336042415,1724679042223,-601.42,0.00012227,2]
[336042416,1724679042235,-500.0,0.00012227,2]
[336042417,1724679042244,-500.0,0.00012227,2]
[336042418,1724679042253,-500.0,0.00012227,2]
[336042419,1724679042264,-722.91,0.00012227,2]
[336042420,1724679042274,-500.0,0.00012227,2]
[336042421,1724679042283,-500.0,0.00012227,2]
[336042422,1724679042293,-613.61,0.00012227,2]
[336042423,1724679042303,-500.0,0.00012227,2]
[336042424,1724679042312,-500.0,0.00012227,2]
[336042425,1724679042322,-500.0,0.00012227,2]
[336042426,1724679042331,-441.30223798,0.00012227,2]
[336042427,1724679042341,-714.09,0.00012227,2]
[336042428,1724679042351,-500.0,0.00012227,2]
[336042429,1724679042361,-1252.08,0.00012227,2]
[336042430,1724679042371,-500.0,0.00012227,2]
[336042431,1724679042381,-500.0,0.00012227,2]
[336042432,1724679042390,-500.0,0.00012227,2]
[336042433,1724679042399,-500.0,0.00012227,2]
[336042434,1724679042408,-527.93307846,0.00012227,2]
[336042435,1724679042418,-525.64,0.00012227,2]
[336042436,1724679042427,-500.0,0.00012227,2]
[336042437,1724679042437,-500.0,0.00012227,2]
[336042438,1724679042446,-500.0,0.00012227,2]
[336042439,1724679042456,-500.0,0.00012227,2]
[336042440,1724679042466,-658.5,0.00012227,2]
[336042441,1724679042475,-500.0,0.00012227,2]
[336042442,1724679042484,-500.0,0.00012227,2]
[336042443,1724679042493,-500.0,0.00012227,2]
[336042444,1724679042502,-500.0,0.00012227,2]
[336042445,1724679042512,-500.0,0.00012227,2]
[336042446,1724679042521,-500.0,0.00012227,2]
[336042447,1724679042530,-500.0,0.00012227,2]
[336042448,1724679042539,-500.0,0.00012227,2]
[336042449,1724679042549,-500.0,0.00012227,2]
[336042450,1724679042558,-1166.72,0.00012227,2]
[336042451,1724679042568,-500.0,0.00012227,2]
[336042452,1724679042578,-597.09,0.00012227,2]
[336042453,1724679042587,-500.0,0.00012227,2]
[336042454,1724679042596,-500.0,0.00012227,2]
[336042455,1724679042606,-500.0,0.00012227,2]
[336042456,1724679042617,-500.0,0.00012227,2]
[336042457,1724679042629,-500.0,0.00012227,2]
[336042458,1724679042639,-500.0,0.00012227,2]
[336042459,1724679042649,-514.8,0.00012227,2]
[336042460,1724679042659,-500.0,0.00012227,2]
[336042461,1724679042668,-1172.28,0.00012227,2]
[336042462,1724679042678,-707.22,0.00012227,2]
[336042463,1724679042687,-500.0,0.00012227,2]
[336042464,1724679042699,-500.0,0.00012227,2]
[336042465,1724679042708,-500.0,0.00012227,2]
[336042466,1724679042718,-580.87,0.00012227,2]
[336042467,1724679042727,-789.6,0.00012227,2]
[336042468,1724679042736,-500.0,0.00012227,2]
[336042469,1724679042745,-500.0,0.00012227,2]
[336042470,1724679042755,-500.0,0.00012227,2]
[336042471,1724679042764,-1276.44,0.00012227,2]
[336042472,1724679042773,-500.0,0.00012227,2]
[336042473,1724679042782,-500.0,0.00012227,2]
[336042474,1724679042791,-527.86793306,0.00012227,2]
[336042475,1724679042800,-500.0,0.00012227,2]
[336042476,1724679042809,-1074.84,0.00012227,2]
[336042477,1724679042819,-1129.71,0.00012227,2]
[336042478,1724679042828,-982.24,0.00012227,2]
[336042479,1724679042837,-500.0,0.00012227,2]
[336042480,1724679042847,-557.38,0.00012227,2]
[336042481,1724679042856,-500.0,0.00012227,2]
[336042482,1724679042865,-500.0,0.00012227,2]
[336042483,1724679042875,-500.0,0.00012227,2]
[336042484,1724679042885,-623.23,0.00012227,2]
[336042485,1724679042894,-659.43,0.00012227,2]
[336042486,1724679042904,-779.03,0.00012227,2]
[336042487,1724679042914,-500.0,0.00012227,2]
[336042488,1724679042923,-500.0,0.00012227,2]
[336042489,1724679042933,-500.0,0.00012227,2]
[336042490,1724679042943,-500.0,0.00012227,2]
[336042491,1724679042952,-500.0,0.00012227,2]
[336042492,1724679042962,-500.0,0.00012227,2]
[336042493,1724679042972,-1369.52,0.00012227,2]
[336042494,1724679042982,-500.0,0.00012227,2]
[336042495,1724679042992,-500.0,0.00012227,2]
[336042496,1724679043002,-950.8,0.00012227,2]
[336042497,1724679043012,-442.9602466,0.00012227,2]
[336042498,1724679043021,-500.0,0.00012227,2]
[336042499,1724679043031,-500.0,0.00012227,2]
[336042500,1724679043040,-1105.84,0.00012227,2]
[336042501,1724679043050,-500.0,0.00012227,2]
[336042502,1724679043060,-500.0,0.00012227,2]
[336042503,1724679043070,-207.51888138,0.00012227,2]
[336042504,1724679043080,-500.0,0.00012227,2]
[336042506,1724679043089,-500.0,0.00012227,2]
[336042508,1724679043099,-553.38971209,0.00012227,2]
[336042509,1724679043109,-654.1,0.00012227,2]
[336042510,1724679043118,-830.19,0.00012227,2]
[336042511,1724679043128,-500.0,0.00012227,2]
[336042512,1724679043147,-500.0,0.00012227,2]
[336042513,1724679043158,-500.0,0.00012227,2]
[336042514,1724679043168,-500.0,0.00012227,2]
[336042515,1724679043178,-500.0,0.00012227,2]
[336042516,1724679043189,-633.65,0.00012227,2]
[336042518,1724679043199,-500.0,0.00012227,2]
[336042521,1724679043208,-500.0,0.00012227,2]
[336042524,1724679043218,-500.0,0.00012227,2]
[336042525,1724679043229,-1174.49,0.00012227,2]
[336042527,1724679043238,-500.0,0.00012227,2]
[336042529,1724679043248,-571.83,0.00012227,2]
[336042531,1724679043257,-500.0,0.00012227,2]
[336042532,1724679043267,-500.0,0.00012227,2]
[336042533,1724679043276,-500.0,0.00012227,2]
[336042535,1724679043285,-678.2,0.00012227,2]
[336042536,1724679043295,-623.42,0.00012227,2]
[336042537,1724679043304,-500.0,0.00012227,2]
[336042538,1724679043314,-822.65,0.00012227,2]
[336042539,1724679043323,-500.0,0.00012227,2]
[336042540,1724679043333,-500.0,0.00012227,2]
[336042542,1724679043342,-672.3,0.00012227,2]
[336042543,1724679043352,-500.0,0.00012227,2]
[336042544,1724679043361,-504.01302944,0.00012227,2]
[336042545,1724679043371,-584.76,0.00012227,2]
[336042546,1724679043381,-500.0,0.00012227,2]
[336042547,1724679043390,-788.29,0.00012227,2]
[336042548,1724679043400,-500.0,0.00012227,2]
[336042550,1724679043410,-500.0,0.00012227,2]
[336042551,1724679043419,-514.19436364,0.00012227,2]
[336042552,1724679043429,-500.0,0.00012227,2]
[336042553,1724679043439,-697.02,0.00012227,2]
[336042554,1724679043448,-500.0,0.00012227,2]
[336042555,1724679043459,-500.0,0.00012227,2]
[336042557,1724679043468,-500.0,0.00012227,2]
[336042558,1724679043478,-500.0,0.00012227,2]
[336042559,1724679043488,-500.0,0.00012227,2]
[336042560,1724679043499,-500.0,0.00012227,2]
[336042561,1724679043509,-500.60833014,0.00012227,2]
[336042562,1724679043519,-2029.12,0.00012227,2]
[336042563,1724679043528,-500.0,0.00012227,2]
[336042564,1724679043538,-500.0,0.00012227,2]
[336042565,1724679043548,-500.0,0.00012227,2]
[336042566,1724679043558,-500.0,0.00012227,2]
[336042567,1724679043568,-500.0,0.00012227,2]
[336042568,1724679043577,-500.0,0.00012227,2]
[336042570,1724679043586,-500.0,0.00012227,2]
[336042571,1724679043595,-500.0,0.00012227,2]
[336042573,1724679043605,-500.0,0.00012227,2]
[336042574,1724679043616,-500.0,0.00012227,2]
[336042575,1724679043631,-747.82,0.00012227,2]
[336042576,1724679043640,-563.08,0.00012227,2]
[336042577,1724679043650,-549.46,0.00012227,2]
[336042578,1724679043660,-500.0,0.00012227,2]
[336042579,1724679043669,-501.23921092,0.00012227,2]
[336042580,1724679043679,-500.0,0.00012227,2]
[336042581,1724679043689,-500.0,0.00012227,2]
[336042582,1724679043699,-587.58,0.00012227,2]
[336042583,1724679043709,-500.0,0.00012227,2]
[336042584,1724679043719,-500.0,0.00012227,2]
[336042585,1724679043728,-1070.91,0.00012227,2]
[336042586,1724679043738,-993.53,0.00012227,2]
[336042587,1724679043747,-533.27,0.00012227,2]
[336042589,1724679043758,-500.0,0.00012227,2]
[336042591,1724679043767,-727.1,0.00012227,2]
[336042593,1724679043777,-500.0,0.00012227,2]
[336042595,1724679043786,-500.0,0.00012227,2]
[336042597,1724679043796,-500.0,0.00012227,2]
[336042599,1724679043806,-500.0,0.00012227,2]
[336042600,1724679043815,-500.0,0.00012227,2]
[336042601,1724679043824,-500.0,0.00012227,2]
[336042602,1724679043834,-691.38,0.00012227,2]
[336042603,1724679043843,-619.6,0.00012227,2]
[336042604,1724679043852,-500.0,0.00012227,2]
[336042605,1724679043861,-500.0,0.00012227,2]
[336042606,1724679043871,-500.0,0.00012227,2]
[336042607,1724679043881,-1002.02,0.00012227,2]
[336042608,1724679043890,-500.0,0.00012227,2]
[336042609,1724679043900,-435.51586744,0.00012227,2]
[336042610,1724679043909,-500.0,0.00012227,2]
[336042611,1724679043919,-1241.27,0.00012227,2]
[336042612,1724679043928,-500.0,0.00012227,2]
[336042613,1724679043938,-500.0,0.00012227,2]
[336042614,1724679043948,-500.0,0.00012227,2]
[336042615,1724679043958,-500.0,0.00012227,2]
[336042616,1724679044130,-691.69,0.00012227,2]
[336042617,1724679044141,-500.0,0.00012227,2]
[336042618,1724679044151,-853.17,0.00012227,2]
[336042619,1724679044160,-510.80994995,0.00012227,2]
[336042620,1724679044170,-500.0,0.00012227,2]
[336042621,1724679044180,-500.0,0.00012227,2]
[336042622,1724679044189,-500.0,0.00012227,2]
[336042623,1724679044199,-500.0,0.00012227,2]
[336042624,1724679044208,-500.0,0.00012227,2]
[336042625,1724679044217,-626.4862909,0.00012227,2]
[336042626,1724679044230,-502.16687777,0.00012227,2]
[336042627,1724679044239,-505.39252896,0.00012227,2]
[336042628,1724679044254,-500.0,0.00012227,2]
[336042629,1724679044264,-740.06,0.00012227,2]
[336042630,1724679044273,-500.0,0.00012227,2]
[336042631,1724679044282,-1327.01,0.00012227,2]
[336042632,1724679044292,-500.0,0.00012227,2]
[336042633,1724679044301,-503.03061336,0.00012227,2]
[336042634,1724679044310,-500.0,0.00012227,2]
[336042635,1724679044319,-500.0,0.00012227,2]
[336042636,1724679044329,-564.72001933,0.00012227,2]
[336042637,1724679044338,-627.46,0.00012227,2]
[336042638,1724679044348,-500.0,0.00012227,2]
[336042639,1724679044358,-500.0,0.00012227,2]
[336042640,1724679044367,-500.0,0.00012227,2]
[336042641,1724679044377,-500.0,0.00012227,2]
[336042642,1724679044387,-803.87,0.00012227,2]
[336042643,1724679044397,-500.0,0.00012227,2]
[336042644,1724679044406,-627.63901446,0.00012227,2]
[336042645,1724679044417,-500.0,0.00012227,2]
[336042646,1724679044428,-500.0,0.00012227,2]
[336042647,1724679044438,-500.0,0.00012227,2]
[336042648,1724679044448,-769.71,0.00012227,2]
[336042649,1724679044458,-500.0,0.00012228,2]
[336042650,1724679044468,-2029.12,0.00012228,2]
[336042651,1724679044478,-16859.0616762,0.00012229,2]
[336042652,1724679044488,-16859.0616762,0.0001223,2]
[336042653,1724679044499,-500.0,0.00012237,2]
[336042654,1724679044508,-500.0,0.00012237,2]
[336042655,1724679044519,-500.0,0.00012237,2]
[336042656,1724679044529,-2043.59,0.00012237,2]
[336042657,1724679044539,-2029.12,0.00012237,2]
[336042658,1724679044549,-712.49,0.00012237,2]
[336042659,1724679044559,-500.0,0.00012237,2]
[336042660,1724679044568,-500.0,0.00012238,2]
[336042661,1724679044578,-500.0,0.00012238,2]
[336042662,1724679044588,-2043.59,0.00012238,2]
[336042663,1724679044598,-712.49,0.00012238,2]
[336042664,1724679044608,-50577.1850285,0.00012239,2]
[336042665,1724679044618,-500.0,0.0001224,2]
[336042666,1724679044629,-500.0,0.0001224,2]
[336042667,1724679044639,-2029.12,0.0001224,2]
[336042668,1724679044648,-2029.12,0.0001224,2]
[336042669,1724679044657,-974.768758,0.0001224,2]
[336042670,1724679044669,-974.768758,0.0001224,2]
[336042671,1724679044678,-16859.0616762,0.0001224,2]
[336042672,1724679044688,-181.34579032,0.00012247,2]
[336042673,1724679044699,-500.0,0.00012247,2]
[336042674,1724679044708,-2043.59,0.00012247,2]
[336042675,1724679044719,-712.49,0.00012247,2]
[336042676,1724679044728,-500.0,0.00012248,2]
[336042677,1724679044737,-500.0,0.00012248,2]
[336042678,1724679044747,-500.0,0.00012248,2]
[336042679,1724679044756,-500.0,0.00012248,2]
[336042680,1724679044766,-500.0,0.00012248,2]
[336042681,1724679044775,-500.0,0.00012248,2]
[336042682,1724679044785,-500.0,0.00012248,2]
[336042683,1724679044795,-500.0,0.00012248,2]
[336042684,1724679044805,-500.0,0.00012248,2]
[336042685,1724679044815,-2043.59,0.00012248,2]
[336042686,1724679044824,-2043.59,0.00012248,2]
[336042687,1724679044834,-2043.59,0.00012248,2]
[336042688,1724679044843,-2029.12,0.00012248,2]
[336042689,1724679044853,-2029.12,0.00012248,2]
[336042690,1724679044863,-2029.12,0.00012248,2]
[336042691,1724679044872,-712.49,0.00012248,2]
[336042692,1724679044882,-712.49,0.00012248,2]
[336042693,1724679044891,-712.49,0.00012248,2]
[336042694,1724679044901,-500.0,0.00012249,2]
[336042695,1724679044910,-500.0,0.00012249,2]
[336042696,1724679044919,-500.0,0.00012249,2]
[336042697,1724679044928,-500.0,0.00012249,2]
[336042698,1724679044938,-500.0,0.00012249,2]
[336042699,1724679044947,-500.0,0.00012249,2]
[336042700,1724679044957,-500.0,0.00012249,2]
[336042701,1724679044966,-500.0,0.00012249,2]
[336042702,1724679044976,-500.0,0.00012249,2]
[336042703,1724679044987,-500.0,0.00012249,2]
[336042704,1724679044997,-278.83849788,0.00012249,2]
[336042705,1724679045007,-500.0,0.00012249,2]
[336042706,1724679045016,-500.0,0.00012249,2]
[336042707,1724679045026,-500.0,0.00012249,2]
[336042708,1724679045036,-683.55,0.00012249,2]
[336042709,1724679045045,-500.0,0.00012249,2]
[336042710,1724679045055,-762.63,0.00012249,2]
[336042711,1724679045064,-518.3055938,0.00012249,2]
[336042712,1724679045073,-500.0,0.00012249,2]
[336042713,1724679045083,-506.68961544,0.00012249,2]
[336042714,1724679045092,-500.0,0.00012249,2]
[336042715,1724679045101,-163.11820704,0.00012249,2]
[336042716,1724679045111,-500.0,0.00012249,2]
[336042717,1724679045120,-500.0,0.00012249,2]
[336042718,1724679045130,-500.0,0.00012249,2]
[336042719,1724679045140,-500.0,0.00012249,2]
[336042720,1724679045149,-500.0,0.00012249,2]
[336042721,1724679045159,-500.0,0.00012249,2]
[336042722,1724679045168,-500.0,0.00012249,2]
[336042723,1724679045178,-500.0,0.00012249,2]
[336042724,1724679045187,-500.0,0.00012249,2]
[336042725,1724679045196,-579.79055848,0.00012249,2]
[336042726,1724679045206,-501.18114304,0.00012249,2]
[336042727,1724679045216,-500.0,0.00012249,2]
[336042728,1724679045225,-501.00260654,0.00012249,2]
[336042729,1724679045236,-500.0,0.00012249,2]
[336042730,1724679045246,-500.0,0.00012249,2]
[336042731,1724679045255,-500.0,0.00012249,2]
[336042732,1724679045264,-663.93,0.00012249,2]
[336042733,1724679045273,-500.0,0.00012249,2]
[336042734,1724679045282,-500.0,0.00012249,2]
[336042735,1724679045292,-946.32,0.00012249,2]
[336042736,1724679045302,-500.0,0.00012249,2]
[336042737,1724679045312,-200.8976722,0.00012249,2]
[336042738,1724679045322,-500.0,0.00012249,2]
[336042739,1724679045332,-500.0,0.00012249,2]
[336042740,1724679045341,-500.0,0.00012249,2]
[336042741,1724679045351,-961.8,0.00012249,2]
[336042742,1724679045360,-500.0,0.00012249,2]
[336042743,1724679045369,-500.0,0.00012249,2]
[336042744,1724679045378,-500.0,0.00012249,2]
[336042745,1724679045387,-547.97,0.00012249,2]
[336042746,1724679045396,-500.0,0.00012249,2]
[336042747,1724679045405,-500.0,0.00012249,2]
[336042748,1724679045414,-597.34,0.00012249,2]